bitfinex/quotes_ETHUSD_20251120
["timestamp","ask_amount","ask_price","bid_price","bid_amount"]
[1763639194867,0.0012,3021.1,3021.0,0.4518]
[1763639195648,0.2701,3021.1,3020.7,0.4622]
[1763639195847,0.2701,3021.1,3020.5,3.31166334]
[1763639196050,0.2701,3021.1,3020.5,4.87250636]
[1763639196382,3.58022418,3021.1,3020.6,0.4622]
[1763639198085,4.04482418,3021.1,3020.6,0.4622]
[1763639198447,3.58022418,3021.1,3020.6,3.77278295]
[1763639198950,3.58022418,3021.1,3020.7,0.497]
[1763639199150,3.58022418,3021.1,3020.5,0.498]
[1763639199394,3.58022418,3021.1,3020.5,0.93798]
[1763639199683,0.4646,3020.6,3020.5,0.001]
[1763639201566,3.77520054,3020.6,3020.5,0.001]
[1763639202251,0.4646,3020.6,3020.5,0.4787]
[1763639202454,3.31023019,3021.0,3020.5,0.9757]
[1763639202787,3.31023019,3021.0,3020.5,0.001]
[1763639202788,0.4969,3020.9,3020.5,0.001]
[1763639204053,3.31038135,3020.8,3020.5,0.001]
[1763639204879,0.112,3020.9,3020.7,0.4777]
[1763639205182,0.112,3020.9,3020.6,0.497]
[1763639205487,3.31026272,3021.0,3020.5,0.001]
[1763639205488,3.42226272,3021.0,3020.5,0.001]
[1763639205675,3.42226272,3021.0,3020.5,0.498]
[1763639207455,6.73252544,3021.0,3020.5,0.498]
[1763639208290,6.73172544,3021.0,3020.5,0.498]
[1763639208456,3.42146272,3021.0,3020.5,0.498]
[1763639208657,6.73172544,3021.0,3020.5,0.498]
[1763639209154,3.42146272,3021.0,3020.5,0.498]
[1763639209349,6.73172544,3021.0,3020.5,0.498]
[1763639210405,7.22862544,3021.0,3020.5,0.498]
[1763639211521,0.4969,3020.9,3020.5,0.001]
[1763639211818,0.2388,3020.6,3020.5,0.001]
[1763639211972,0.4969,3020.9,3020.5,0.001]
[1763639212177,0.112,3020.9,3020.6,0.497]
[1763639212576,3.31038135,3020.8,3020.6,0.497]
[1763639213180,3.31038135,3020.8,3020.7,0.4777]
[1763639215215,3.42146272,3021.0,3020.7,0.4777]
[1763639215216,3.31027177,3020.9,3020.7,0.4777]
[1763639216495,3.91910965,3021.0,3020.7,0.4777]
[1763639216696,3.42220965,3021.0,3020.7,0.4777]
[1763639217182,3.31020965,3021.0,3020.7,0.4777]
[1763639217378,3.42220965,3021.0,3020.7,0.4777]
[1763639218590,3.91910965,3021.0,3020.7,0.4777]
[1763639220285,7.2293193,3021.0,3020.7,0.4777]
[1763639221824,7.2293193,3021.0,3020.5,0.498]
[1763639222694,0.4969,3020.9,3020.5,0.498]
[1763639223089,0.0012,3021.1,3020.8,5.21984257]
[1763639223297,0.0012,3021.1,3021.0,0.4777]
[1763639223858,0.24,3021.1,3020.6,0.609]
[1763639224012,0.0012,3021.1,3021.0,0.4777]
[1763639224691,0.8489,3021.1,3020.5,0.38199207]
[1763639224895,0.31029269,3021.0,3020.5,0.001]
[1763639225130,0.2388,3020.6,3020.5,0.001]
[1763639225608,0.31035964,3020.9,3020.5,0.9757]
[1763639225940,0.31035964,3021.0,3020.5,0.9757]
[1763639226229,0.31035964,3020.9,3020.5,0.9757]
[1763639226402,3.31038135,3020.8,3020.5,0.9757]
[1763639227001,6.6207627,3020.8,3020.5,0.9757]
[1763639227433,3.31038135,3020.8,3020.7,0.4777]
[1763639227641,0.112,3020.9,3020.7,0.4777]
[1763639227843,0.4959,3020.6,3020.5,0.001]
[1763639228544,3.80650054,3020.6,3020.5,0.001]
[1763639229204,4.04630054,3020.6,3020.5,0.001]
[1763639229653,9.09893297,3020.6,3020.5,0.001]
[1763639229819,9.50443697,3020.6,3020.5,0.001]
[1763639230209,3.6210904,3020.6,3020.5,0.4686]
[1763639230445,0.42248986,3020.6,3020.5,0.4686]
[1763639230737,0.002,3021.0,3020.5,0.95]
[1763639230941,0.002,3021.0,3020.9,0.4676]
[1763639231637,0.002,3021.0,3020.9,0.949]
[1763639231839,0.002,3021.0,3020.9,0.4676]
[1763639232213,0.0012,3021.0,3020.9,0.4676]
[1763639234741,0.0012,3021.0,3020.9,0.949]
[1763639235053,0.0012,3021.0,3020.9,1.37494374]
[1763639235301,0.0012,3021.0,3020.9,0.4676]
[1763639235460,0.2448,3021.0,3020.6,0.4814]
[1763639235776,0.0012,3021.0,3020.6,3.92448968]
[1763639236172,0.0012,3021.0,3020.9,0.4676]
[1763639237372,0.2448,3021.0,3020.7,0.4814]
[1763639237682,0.2448,3021.0,3020.7,0.88515146]
[1763639237880,0.2448,3021.0,3020.7,0.40375146]
[1763639238084,0.0049,3020.8,3020.5,0.001]
[1763639238379,0.0049,3020.8,3020.5,0.4824]
[1763639238584,0.0012,3021.0,3020.7,0.4676]
[1763639238786,0.0012,3021.0,3020.9,0.4676]
[1763639239650,0.0012,3021.0,3020.9,0.949]
[1763639240655,0.0012,3021.0,3020.9,4.25927177]
[1763639240873,0.0012,3021.0,3020.9,1.73041616]
[1763639241181,0.0012,3021.0,3020.9,5.04068793]
[1763639241746,0.0012,3021.0,3020.9,1.73041616]
[1763639241981,0.0012,3021.0,3020.9,5.04068793]
[1763639243086,0.0012,3021.0,3020.9,1.73041616]
[1763639243248,0.0012,3021.0,3020.9,0.949]
[1763639243580,0.0012,3021.0,3020.9,4.25927177]
[1763639246060,0.0012,3021.0,3020.9,4.39177848]
[1763639248597,0.0012,3021.0,3020.9,4.39277848]
[1763639248888,0.0012,3021.0,3020.9,1.0321]
[1763639249088,0.0012,3021.0,3020.9,0.5806]
[1763639249289,0.0012,3021.0,3020.9,1.0321]
[1763639249668,0.0012,3021.0,3020.9,4.34237177]
[1763639250394,0.0012,3021.0,3020.9,5.12090946]
[1763639250897,0.0012,3021.0,3020.9,1.81063769]
[1763639251098,0.0012,3021.0,3020.9,1.0321]
[1763639251270,0.2575,3021.0,3020.9,0.001]
[1763639251594,0.7345,3021.0,3020.9,0.001]
[1763639252000,0.2575,3021.0,3020.9,0.001]
[1763639252775,0.0012,3021.0,3020.9,0.4924]
[1763639254074,0.0012,3021.0,3020.9,0.001]
[1763639254402,0.0012,3021.0,3020.9,0.4924]
[1763639254901,0.2575,3021.0,3020.9,0.001]
[1763639255111,0.7345,3021.0,3020.9,0.001]
[1763639255996,4.04466219,3021.0,3020.9,0.001]
[1763639256200,0.7337,3021.0,3020.9,0.001]
[1763639258605,0.2567,3021.0,3020.9,0.001]
[1763639258801,0.0004,3021.0,3020.9,0.4814]
[1763639260576,0.0004,3021.0,3020.9,0.001]
[1763639261612,0.0004,3021.0,3020.9,0.4814]
[1763639263110,0.0004,3021.0,3020.9,0.9398]
[1763639263987,0.0004,3021.0,3020.9,0.4814]
[1763639264189,0.0004,3021.0,3020.9,0.9398]
[1763639264584,0.0004,3021.0,3020.9,0.4814]
[1763639267303,0.4832,3021.0,3020.9,0.001]
[1763639267912,3.79336219,3021.0,3020.9,0.001]
[1763639268119,1.11969378,3021.0,3020.9,0.001]
[1763639268315,0.7359,3021.0,3020.9,0.001]
[1763639268496,4.04606219,3021.0,3020.9,0.001]
[1763639270025,0.7359,3021.0,3020.9,0.001]
[1763639270915,0.4832,3021.0,3020.9,0.001]
[1763639271318,0.0004,3021.0,3020.9,0.001]
[1763639274687,0.0004,3021.0,3020.9,0.4814]
[1763639276490,0.0004,3021.0,3020.9,0.001]
[1763639277203,0.0004,3021.0,3020.9,0.4814]
[1763639278006,0.0004,3021.0,3020.9,0.9398]
[1763639278688,0.0004,3021.0,3020.9,0.4814]
[1763639279122,0.2792,3021.0,3020.9,0.001]
[1763639280117,0.0004,3021.0,3020.9,0.001]
[1763639280327,0.31136472,3021.1,3020.9,0.001]
[1763639280499,0.31136472,3021.1,3021.0,0.4804]
[1763639280701,0.0008,3021.1,3021.0,0.4804]
[1763639281832,0.0008,3021.1,3021.0,4.62813802]
[1763639283023,0.0008,3021.1,3021.0,5.06921124]
[1763639284747,0.002,3021.4,3021.3,11.205454]
[1763639285031,0.002,3021.4,3021.3,21.06170907]
[1763639285204,0.002,3021.4,3021.3,21.13903636]
[1763639285406,0.002,3021.4,3021.3,23.69437333]
[1763639285638,0.002,3021.5,3021.4,0.90699264]
[1763639285813,0.002,3021.5,3021.4,12.43850776]
[1763639286018,0.002,3021.5,3021.4,9.11392398]
[1763639286335,0.002,3021.5,3021.4,1.0508]
[1763639286517,0.002,3021.5,3021.4,2.07337944]
[1763639287099,0.002,3021.5,3021.4,5.3831034]
[1763639293844,0.7304,3021.5,3021.4,1.13457944]
[1763639294035,0.002,3021.5,3021.4,1.064]
[1763639294345,0.002,3021.5,3021.4,4.37372396]
[1763639294547,0.002,3021.5,3021.4,4.39580206]
[1763639294750,0.002,3021.5,3021.4,4.37372396]
[1763639295754,0.002,3021.5,3021.4,1.064]
[1763639295959,0.002,3021.5,3021.4,1.02348205]
[1763639296156,0.002,3021.5,3021.4,0.112]
[1763639296357,0.2368,3021.5,3021.4,0.112]
[1763639296653,0.7334,3021.5,3021.4,0.112]
[1763639297026,0.2368,3021.5,3021.4,0.112]
[1763639299261,0.2394,3021.5,3021.4,0.112]
[1763639299460,4.04301442,3021.5,3020.9,3.31125578]
[1763639299649,4.04301442,3021.5,3021.4,0.4773]
[1763639299650,0.002,3021.5,3021.4,0.4773]
[1763639300461,0.242,3021.5,3021.4,0.001]
[1763639301958,3.55161442,3021.5,3021.4,0.001]
[1763639302662,4.04311442,3021.5,3021.4,0.001]
[1763639303335,4.77857701,3021.5,3021.4,0.001]
[1763639303865,5.08821033,3021.5,3021.4,0.001]
[1763639304368,5.08741033,3021.5,3021.4,0.001]
[1763639304768,4.77777701,3021.5,3021.4,0.001]
[1763639305771,4.88977701,3021.5,3021.4,0.001]
[1763639305941,5.19943868,3021.5,3021.4,0.001]
[1763639308555,4.39827701,3021.5,3021.4,0.001]
[1763639308758,4.88977701,3021.5,3021.4,0.001]
[1763639309271,5.19947799,3021.5,3021.4,0.001]
[1763639310251,4.88977701,3021.5,3021.4,0.001]
[1763639310855,5.19946369,3021.5,3021.4,0.001]
[1763639312285,4.88977701,3021.5,3021.4,0.001]
[1763639313753,3.55081442,3021.5,3021.4,0.001]
[1763639314554,4.04231442,3021.5,3021.4,0.001]
[1763639316386,3.55081442,3021.5,3021.4,0.001]
[1763639317354,0.0012,3021.5,3021.4,0.4759]
[1763639317560,0.0012,3021.5,3021.4,1.0874]
[1763639317756,0.0012,3021.5,3021.4,1.67023965]
[1763639318186,0.0012,3021.5,3021.4,4.97996361]
[1763639321861,0.0012,3021.5,3021.4,5.90903435]
[1763639323568,0.0012,3021.5,3021.4,5.88695625]
[1763639326695,0.0012,3021.5,3021.4,1.17073965]
[1763639326886,0.2598,3021.5,3021.4,0.001]
[1763639328219,0.259,3021.5,3021.4,0.001]
[1763639330323,3.56861442,3021.5,3021.4,0.001]
[1763639330522,4.04231442,3021.5,3021.4,0.001]
[1763639330707,3.56861442,3021.5,3021.4,0.001]
[1763639331020,4.25662715,3021.5,3021.4,0.001]
[1763639331721,4.73032715,3021.5,3021.4,0.001]
[1763639333317,4.04231442,3021.5,3021.4,0.001]
[1763639334926,3.56861442,3021.5,3021.4,0.001]
[1763639335422,0.259,3021.5,3021.4,0.001]
[1763639335833,0.0004,3021.5,3021.4,0.001]
[1763639336328,0.2611,3021.5,3021.4,0.001]
[1763639336555,3.57071442,3021.5,3021.4,0.001]
[1763639337196,0.2611,3021.5,3021.4,0.001]
[1763639337390,0.0004,3021.5,3021.4,0.001]
[1763639337594,0.0004,3021.5,3021.4,0.4626]
[1763639338524,0.259,3021.5,3021.4,0.001]
[1763639338698,0.7327,3021.5,3021.4,0.001]
[1763639340350,0.0004,3021.5,3021.4,0.4626]
[1763639343237,0.0004,3021.5,3021.4,5.69086128]
[1763639343441,0.0004,3021.5,3021.4,6.59093994]
[1763639343640,0.0004,3021.5,3021.4,1.85207866]
[1763639344350,0.0004,3021.5,3021.4,1.36267866]
[1763639345152,0.0004,3021.5,3021.4,1.85207866]
[1763639346454,0.0004,3021.5,3021.4,0.4626]
[1763639346641,0.0004,3021.5,3021.4,0.952]
[1763639346951,0.0004,3021.5,3021.4,4.28380206]
[1763639347150,0.0004,3021.5,3021.4,4.26172396]
[1763639347353,0.0004,3021.5,3021.4,8.07260206]
[1763639347542,0.0004,3021.5,3021.4,9.67385268]
[1763639348173,0.0004,3021.5,3021.4,5.88505268]
[1763639348339,0.0004,3021.5,3021.4,9.67385268]
[1763639349237,0.002,3021.7,3021.6,0.90699264]
[1763639349435,0.002,3021.7,3021.6,10.67851692]
[1763639349661,0.002,3021.7,3021.6,12.58399151]
[1763639350336,0.002,3021.7,3021.6,10.60692851]
[1763639350542,0.002,3021.7,3021.6,8.59862851]
[1763639350952,0.002,3021.7,3021.6,11.9081334]
[1763639351151,0.002,3021.7,3021.6,11.7961334]
[1763639351360,0.002,3021.7,3021.6,11.9081334]
[1763639352265,0.0012,3021.7,3021.6,11.9081334]
[1763639352839,0.0012,3021.7,3021.6,24.2951994]
[1763639353044,0.0012,3021.7,3021.6,21.6920144]
[1763639353244,0.0012,3021.7,3021.6,20.6067334]
[1763639354048,0.0012,3021.7,3021.6,20.1460494]
[1763639354242,0.0012,3021.7,3021.6,11.9081334]
[1763639358050,0.0012,3021.7,3021.6,11.8993634]
[1763639358581,0.0012,3021.7,3021.6,19.1799624]
[1763639361963,0.0012,3021.7,3021.6,30.4659744]
[1763639362167,0.0012,3021.7,3021.6,25.9776874]
[1763639362394,0.0012,3021.7,3021.6,23.8248394]
[1763639363098,0.0012,3021.7,3021.6,22.9820134]
[1763639363588,0.0012,3021.7,3021.6,20.4887324]
[1763639364092,0.0012,3021.7,3021.6,11.8993634]
[1763639364949,0.0012,3021.7,3021.6,13.9766764]
[1763639369586,0.0012,3021.7,3021.6,11.8993634]
[1763639369884,0.0012,3021.7,3021.6,15.9070464]
[1763639371293,0.0012,3021.7,3021.6,25.9849044]
[1763639372002,0.0012,3021.7,3021.6,23.8723714]
[1763639372170,0.0012,3021.7,3021.6,11.8993634]
[1763639372370,0.0012,3021.7,3021.6,22.9055064]
[1763639372907,0.0012,3021.7,3021.6,21.2992014]
[1763639373402,0.0012,3021.7,3021.6,24.5967874]
[1763639373705,0.0012,3021.7,3021.6,16.5206774]
[1763639374206,0.0012,3021.7,3021.6,11.8993634]
[1763639375504,0.0012,3021.7,3021.6,5.32697948]
[1763639375505,0.2492,3021.7,3021.6,5.32697948]
[1763639375815,0.2492,3021.7,3021.6,3.42150489]
[1763639376177,0.2484,3021.7,3021.6,3.42150489]
[1763639377068,0.0004,3021.7,3021.6,3.42150489]
[1763639377471,0.0004,3021.7,3021.6,4.37630489]
[1763639378698,0.0004,3021.7,3021.6,10.27378753]
[1763639378904,0.0004,3021.7,3021.6,11.29701344]
[1763639379274,0.0004,3021.7,3021.6,10.83901344]
[1763639379673,0.0004,3021.7,3021.6,10.90082744]
[1763639379877,0.002,3021.9,3021.7,1.78769664]
[1763639380078,0.002,3021.9,3021.8,5.21406128]
[1763639380279,0.002,3021.9,3021.8,7.56449441]
[1763639381579,0.002,3021.9,3021.8,10.87378026]
[1763639382615,0.002,3021.9,3021.8,24.40958426]
[1763639382911,0.002,3021.9,3021.8,18.15282826]
[1763639383118,0.002,3021.9,3021.8,15.25196626]
[1763639383926,0.002,3021.9,3021.8,14.75386626]
[1763639384215,0.002,3021.9,3021.8,10.37568026]
[1763639384415,0.4815,3021.9,3021.8,9.90048026]
[1763639384786,0.002,3021.9,3021.8,9.90048026]
[1763639385182,0.002,3021.9,3021.8,10.37568026]
[1763639386296,0.4905,3021.9,3021.8,9.90048026]
[1763639386620,0.944,3021.9,3021.8,3.42128585]
[1763639387715,0.844,3021.9,3021.8,3.42128585]
[1763639387921,4.15317634,3021.9,3021.5,0.001]
[1763639388096,0.4795,3021.6,3021.5,0.001]
[1763639388480,0.658,3021.6,3021.5,0.001]
[1763639390085,3.96750489,3021.6,3021.5,0.001]
[1763639390325,4.69519515,3021.6,3021.5,0.001]
[1763639399739,0.4795,3021.3,3021.0,0.001]
[1763639399906,0.405504,3021.0,3020.7,0.001]
[1763639400106,0.1735,3020.8,3020.7,0.001]
[1763639400448,0.6286,3020.8,3020.7,0.001]
[1763639400951,3.93898135,3020.8,3020.7,0.001]
[1763639401145,5.18141114,3020.8,3020.7,0.001]
[1763639401860,0.405504,3020.7,3020.5,0.001]
[1763639402030,0.0859,3020.6,3020.5,0.001]
[1763639402427,0.405504,3020.5,3020.3,0.001]
[1763639402631,0.541,3020.6,3020.3,0.001]
[1763639402632,0.525704,3020.4,3020.3,0.001]
[1763639403127,4.29162375,3020.4,3020.3,0.001]
[1763639403343,5.04728582,3020.4,3020.3,0.001]
[1763639404751,0.405504,3020.0,3019.8,0.001]
[1763639404926,0.526504,3020.0,3019.8,0.001]
[1763639405130,4.29286227,3020.0,3019.8,0.001]
[1763639405316,5.01778806,3020.0,3019.8,0.001]
[1763639406119,4.04518406,3020.0,3019.8,0.001]
[1763639406316,0.4551,3020.4,3019.9,0.4762]
[1763639406650,0.0932,3020.0,3019.9,0.001]
[1763639407024,0.055505,3020.0,3019.9,0.001]
[1763639408160,0.0595,3020.0,3019.9,0.001]
[1763639409761,3.956337,3020.8,3019.9,0.9246]
[1763639410064,0.112,3020.7,3020.1,0.4581]
[1763639410261,0.112,3020.7,3020.1,0.6558]
[1763639411041,0.112,3020.7,3020.1,1.1213]
[1763639411244,0.112,3020.7,3020.1,0.6558]
[1763639411443,3.31060054,3020.6,3020.1,0.4581]
[1763639411645,3.31060054,3020.6,3020.1,3.76924058]
[1763639411847,0.4798,3020.6,3020.1,0.4581]
[1763639412046,0.4798,3020.6,3020.1,3.76924794]
[1763639412250,0.4798,3020.6,3020.1,4.23474794]
[1763639412448,3.31051506,3020.7,3020.1,4.43244794]
[1763639413079,0.1661,3020.8,3020.1,4.7982717]
[1763639413279,3.54983407,3021.0,3020.2,0.4655]
[1763639413453,6.86006814,3021.0,3020.2,3.77650004]
[1763639413662,0.4798,3020.9,3020.2,3.31100004]
[1763639413966,0.4798,3020.9,3020.2,3.77650004]
[1763639414141,0.4798,3020.9,3020.2,4.58817468]
[1763639414646,0.0695,3020.3,3020.1,3.42314832]
[1763639415347,0.4757,3020.7,3020.1,3.42314832]
[1763639415576,0.0735,3020.2,3020.1,0.112]
[1763639415781,0.0735,3020.2,3020.1,1.01899264]
[1763639415963,0.4717,3020.6,3020.1,4.33014127]
[1763639416554,0.0775,3020.2,3020.1,0.90699264]
[1763639416767,0.0775,3020.2,3019.9,1.001]
[1763639416967,0.4844,3020.0,3019.9,1.001]
[1763639418180,0.5918,3020.5,3019.9,1.9246]
[1763639418352,0.112,3020.5,3019.9,1.4591]
[1763639418553,0.5918,3020.5,3019.9,1.4591]
[1763639419187,0.0695,3020.0,3019.9,1.001]
[1763639419548,0.5452,3020.0,3019.9,1.001]
[1763639419751,3.85645827,3020.0,3019.9,1.001]
[1763639419989,4.9899235,3020.0,3019.9,1.001]
[1763639421252,5.29879986,3020.0,3019.9,1.001]
[1763639421452,5.41079986,3020.0,3019.9,1.001]
[1763639422084,5.41082846,3020.0,3019.9,1.001]
[1763639422990,1.10635654,3020.0,3019.9,1.001]
[1763639423192,0.0735,3020.0,3019.9,1.001]
[1763639423367,0.5452,3020.0,3019.9,1.001]
[1763639424190,0.0727,3020.0,3019.9,1.001]
[1763639424391,3.38595827,3020.0,3019.9,1.001]
[1763639424573,0.002,3020.0,3019.9,1.001]
[1763639424980,0.0706,3020.0,3019.9,1.001]
[1763639425787,0.002,3020.0,3019.9,1.4591]
[1763639425997,0.002,3020.0,3019.9,5.71313266]
[1763639426154,0.002,3020.0,3019.9,2.40176474]
[1763639426492,0.002,3020.0,3019.9,1.93626474]
[1763639427187,0.002,3020.0,3019.9,2.40176474]
[1763639428698,0.002,3020.0,3019.9,1.93626474]
[1763639428888,0.0569,3020.0,3019.9,1.001]
[1763639429401,0.0613,3020.0,3019.9,1.001]
[1763639429784,0.002,3020.0,3019.9,1.48]
[1763639430090,0.002,3020.0,3019.9,5.28706792]
[1763639430800,0.002,3020.0,3019.9,6.14703337]
[1763639430965,0.002,3020.0,3019.9,7.07614521]
[1763639431166,0.002,3020.0,3019.9,7.05402601]
[1763639433776,0.002,3020.0,3019.9,7.16602601]
[1763639434234,0.002,3020.0,3019.9,6.55832601]
[1763639434409,0.002,3020.0,3019.9,7.05402601]
[1763639435203,0.002,3020.0,3019.9,17.48652701]
[1763639435397,0.002,3020.4,3020.2,0.90699264]
[1763639435615,0.002,3020.4,3020.3,1.89806006]
[1763639435823,0.002,3020.4,3020.3,1.2792]
[1763639436143,0.002,3020.4,3020.3,5.49712201]
[1763639436715,0.002,3020.4,3020.3,9.28592201]
[1763639437702,0.002,3020.4,3020.3,19.22299001]
[1763639437907,0.002,3020.4,3020.3,9.28592201]
[1763639438109,0.002,3020.4,3020.3,13.04019669]
[1763639438299,0.002,3020.4,3020.3,10.64500369]
[1763639438500,0.002,3020.4,3020.3,13.98624069]
[1763639439430,0.002,3020.4,3020.3,20.43711508]
[1763639439647,0.002,3020.4,3020.3,21.08517708]
[1763639440132,0.002,3020.4,3020.3,21.49068108]
[1763639440715,0.002,3020.4,3020.3,23.76033408]
[1763639441519,0.002,3020.4,3020.3,27.24933408]
[1763639441715,0.002,3020.4,3020.3,23.76033408]
[1763639441919,0.002,3020.4,3020.3,22.49629108]
[1763639442119,0.002,3020.4,3020.3,20.84972908]
[1763639442717,0.002,3020.4,3020.3,20.81274308]
[1763639443744,0.002,3020.4,3020.3,28.31364408]
[1763639444039,0.002,3021.1,3020.8,0.405504]
[1763639444338,0.002,3021.1,3021.0,28.22104803]
[1763639444519,0.002,3021.1,3021.0,28.68174803]
[1763639444719,0.002,3021.1,3021.0,29.70035803]
[1763639444916,0.002,3021.9,3021.2,16.447242]
[1763639445117,0.002,3021.9,3021.8,6.57102864]
[1763639445329,0.002,3021.9,3021.8,2.3426955]
[1763639445550,0.002,3021.9,3021.8,2.14629264]
[1763639445718,0.002,3021.9,3021.8,5.45557849]
[1763639446417,0.002,3021.9,3021.8,4.99487849]
[1763639446951,0.4627,3021.9,3021.8,4.21627849]
[1763639447139,0.4627,3021.9,3021.8,4.32827849]
[1763639447448,0.002,3021.9,3021.8,5.26447849]
[1763639447653,0.002,3021.9,3021.8,4.80377849]
[1763639448247,0.0012,3021.9,3021.8,4.80377849]
[1763639448412,0.0012,3021.9,3021.8,6.12186561]
[1763639448817,0.0012,3021.9,3021.8,5.66116561]
[1763639449839,0.0012,3021.9,3021.8,6.12186561]
[1763639450350,0.0012,3021.9,3021.8,5.66116561]
[1763639450519,0.0012,3021.9,3021.8,4.80377849]
[1763639450924,0.0012,3021.9,3021.8,5.26447849]
[1763639451856,0.0012,3021.9,3021.8,5.28654564]
[1763639455870,0.0012,3021.9,3021.8,5.26447849]
[1763639456043,0.0012,3021.9,3021.8,6.73753118]
[1763639459854,0.0012,3021.9,3021.8,6.73853118]
[1763639460751,0.0012,3021.9,3021.8,4.32927849]
[1763639460942,0.0696,3021.9,3021.8,4.32927849]
[1763639461139,0.0012,3021.9,3021.8,5.26547849]
[1763639463276,0.0012,3021.9,3021.8,9.05427849]
[1763639464967,0.0012,3021.9,3021.8,8.59357849]
[1763639466879,0.0012,3021.9,3021.8,9.05427849]
[1763639467576,0.0012,3021.9,3021.8,9.87543186]
[1763639468880,0.0012,3021.9,3021.8,14.61040976]
[1763639469277,0.073,3021.9,3021.8,12.85305639]
[1763639470846,0.0012,3021.9,3021.8,12.85305639]
[1763639471878,0.077,3021.9,3021.8,12.85305639]
[1763639472283,0.0762,3021.9,3021.8,8.11807849]
[1763639472458,0.2614,3021.9,3021.8,12.85305639]
[1763639472650,0.7344,3021.9,3021.8,12.85305639]
[1763639473477,0.2614,3021.9,3021.8,12.85305639]
[1763639476279,0.7344,3021.9,3021.8,0.001]
[1763639476984,1.04490283,3021.9,3021.8,0.001]
[1763639477218,0.7344,3021.9,3021.8,3.31028585]
[1763639477371,0.2614,3021.9,3021.8,3.31028585]
[1763639477570,0.0004,3021.9,3021.8,4.71434564]
[1763639478009,0.0004,3021.9,3021.8,4.23934564]
[1763639478717,0.0004,3021.9,3021.8,4.69227849]
[1763639478922,0.0004,3021.9,3021.8,10.26471003]
[1763639479117,0.0004,3021.9,3021.8,9.76594288]
[1763639480486,0.0004,3021.9,3021.8,10.24264288]
[1763639481104,0.0004,3021.9,3021.8,9.76594288]
[1763639481673,0.0757,3021.9,3021.8,8.00607849]
[1763639481881,0.7344,3021.9,3021.8,8.00607849]
[1763639482106,0.2609,3021.9,3021.8,8.00607849]
[1763639485636,0.7344,3021.9,3021.8,8.00607849]
[1763639485817,0.7344,3021.9,3021.8,4.69679264]
[1763639486033,0.7344,3021.9,3021.8,8.00607849]
[1763639486397,0.7344,3021.9,3021.8,4.69679264]
[1763639486632,0.7344,3021.9,3021.8,8.00607849]
[1763639487194,0.7344,3021.9,3021.8,7.09908585]
[1763639489413,0.7344,3021.9,3021.8,3.7898]
[1763639489946,4.04357634,3021.9,3021.8,0.001]
[1763639490100,5.10037641,3021.9,3021.8,0.001]
[1763639491450,1.48106515,3021.9,3021.8,0.001]
[1763639491609,0.7344,3021.9,3021.8,0.001]
[1763639491804,0.2609,3021.9,3021.8,0.001]
[1763639492035,0.2609,3021.9,3021.8,4.7359779]
[1763639492305,0.2609,3021.9,3021.8,0.001]
[1763639493908,0.0004,3021.9,3021.8,5.2077779]
[1763639494129,0.0004,3021.9,3021.8,6.86683476]
[1763639495942,0.0004,3021.9,3021.8,14.87191325]
[1763639496154,0.0016,3022.1,3021.9,0.90699264]
[1763639496453,0.0016,3022.1,3022.0,6.22577054]
[1763639496650,0.0016,3022.1,3022.0,7.67841679]
[1763639496964,0.0016,3022.1,3021.8,0.001]
[1763639496965,0.5466,3022.1,3021.8,0.001]
[1763639497260,0.1937,3021.9,3021.8,0.001]
[1763639497560,0.0016,3022.1,3021.8,3.31026994]
[1763639497722,0.05,3021.9,3021.8,0.001]
[1763639499137,0.4966,3022.1,3021.8,0.001]
[1763639499138,0.0016,3022.1,3021.8,0.001]
[1763639499337,0.0016,3022.1,3022.0,0.4691]
[1763639499738,0.0016,3022.1,3022.0,0.9457]
[1763639499938,0.0016,3022.1,3022.0,5.16175948]
[1763639500247,0.0016,3022.1,3022.0,4.79715948]
[1763639500419,0.0016,3022.1,3022.0,5.27375948]
[1763639500619,0.0016,3022.1,3022.0,6.20854003]
[1763639503347,0.0016,3022.1,3022.0,5.73194003]
[1763639503520,0.0016,3022.1,3022.0,5.26284003]
[1763639504154,0.0016,3022.1,3022.0,5.73194003]
[1763639504532,0.0016,3022.1,3022.0,6.20854003]
[1763639504847,0.0016,3022.1,3022.0,6.2306017]
[1763639505146,0.0016,3022.1,3022.0,6.20854003]
[1763639506226,0.0016,3022.1,3022.0,5.73194003]
[1763639506447,0.0955,3022.1,3022.0,4.32805948]
[1763639506628,0.547,3022.1,3022.0,4.32805948]
[1763639506845,0.0955,3022.1,3022.0,4.32805948]
[1763639507850,0.547,3022.1,3022.0,0.90699264]
[1763639508051,0.547,3022.1,3021.8,3.3102772]
[1763639508249,0.093,3021.9,3021.8,4.21726984]
[1763639508550,0.2784,3021.9,3021.8,4.21726984]
[1763639509852,0.093,3021.9,3021.8,4.21726984]
[1763639511251,0.2784,3021.9,3021.8,4.21726984]
[1763639512163,0.7335,3021.9,3021.8,0.90799264]
[1763639512747,0.0016,3022.1,3021.9,0.90699264]
[1763639514029,0.0016,3022.1,3022.0,3.30906684]
[1763639514351,0.0973,3022.0,3021.9,0.90699264]
[1763639514752,0.5489,3022.0,3021.9,0.90699264]
[1763639516963,0.5489,3022.0,3021.9,4.21616898]
[1763639517262,0.0973,3022.0,3021.9,4.21616898]
[1763639517864,0.5489,3022.0,3021.9,0.90699264]
[1763639518443,0.93503917,3022.0,3021.8,0.001]
[1763639518655,0.1899,3021.9,3021.8,0.001]
[1763639518854,0.645,3021.9,3021.8,0.001]